fUSD/lending_fUSD_20250204
["ID","MTS","AMOUNT","RATE_DAILY","PERIOD"]
[351595242,1738651902283,-1701.57,9.412e-05,2]
[351595243,1738651902299,-500.0,9.412e-05,2]
[351595244,1738651902309,-1227.61,9.412e-05,2]
[351595245,1738651902319,-1258.33,9.412e-05,2]
[351595246,1738651902329,-533.93,9.412e-05,2]
[351595247,1738651902339,-504.68149611,9.412e-05,2]
[351595248,1738651902349,-500.0,9.412e-05,2]
[351595249,1738651902359,-1867.62,9.412e-05,2]
[351595250,1738651902370,-502.15525785,9.412e-05,2]
[351595251,1738651902380,-636.61289804,9.412e-05,2]
[351595252,1738651902390,-503.44788024,9.412e-05,2]
[351595253,1738651902401,-2414.87,9.412e-05,2]
[351595254,1738651902410,-1692.34,9.412e-05,2]
[351595255,1738651902420,-974.44,9.412e-05,2]
[351595256,1738651902431,-2119.85,9.412e-05,2]
[351595257,1738651902441,-500.0,9.412e-05,2]
[351595258,1738651902451,-500.0,9.412e-05,2]
[351595259,1738651902460,-503.40726738,9.412e-05,2]
[351595260,1738651902470,-608.12,9.412e-05,2]
[351595261,1738651902479,-500.0,9.412e-05,7]
[351595262,1738651902489,-500.0,9.412e-05,2]
[351595263,1738651902498,-706.35,9.412e-05,2]
[351595264,1738651902508,-980.64,9.412e-05,2]
[351595265,1738651902517,-557.68,9.412e-05,2]
[351595266,1738651902527,-1544.16,9.412e-05,2]
[351595267,1738651902540,-1127.81,9.412e-05,2]
[351595268,1738651902550,-962.28,9.412e-05,2]
[351595269,1738651902560,-500.0,9.412e-05,2]
[351595270,1738651902570,-842.89,9.412e-05,2]
[351595271,1738651902580,-583.68,9.412e-05,2]
[351595272,1738651902590,-880.05,9.412e-05,2]
[351595273,1738651902600,-1664.57,9.412e-05,2]
[351595274,1738651902609,-500.0,9.412e-05,2]
[351595275,1738651902618,-1460.87,9.412e-05,2]
[351595276,1738651902628,-537.15,9.412e-05,2]
[351595277,1738651902638,-2650.59,9.412e-05,2]
[351595278,1738651902647,-1032.75,9.412e-05,2]
[351595279,1738651902656,-500.0,9.413e-05,2]
[351595280,1738651902665,-500.0,9.413e-05,2]
[351595281,1738651902675,-500.0,9.413e-05,2]
[351595282,1738651902684,-500.0,9.413e-05,2]
[351595283,1738651902693,-327.2865061,9.413e-05,2]
[351595284,1738651902703,-500.0,9.413e-05,2]
[351595285,1738651902712,-507.52727168,9.413e-05,2]
[351595286,1738651902722,-1816.98,9.413e-05,2]
[351595287,1738651902731,-500.0,9.413e-05,2]
[351595288,1738651902740,-800.32,9.413e-05,2]
[351595289,1738651902750,-2661.74,9.413e-05,2]
[351595290,1738651902760,-3559.44,9.413e-05,2]
[351595291,1738651902769,-500.0,9.413e-05,2]
[351595292,1738651902779,-1000.2,9.413e-05,2]
[351595293,1738651902790,-1789.57,9.413e-05,2]
[351595294,1738651902799,-1346.06,9.413e-05,2]
[351595295,1738651902809,-500.0,9.413e-05,2]
[351595296,1738651902818,-500.0,9.413e-05,2]
[351595297,1738651902828,-500.0,9.413e-05,2]
[351595298,1738651902837,-1910.87,9.413e-05,2]
[351595299,1738651902847,-574.03,9.413e-05,2]
[351595300,1738651902857,-1533.37,9.413e-05,2]
[351595301,1738651902866,-1637.92,9.413e-05,2]
[351595302,1738651902876,-500.0,9.413e-05,2]
[351595303,1738651902886,-2100.89,9.413e-05,2]
[351595304,1738651902896,-1545.56,9.413e-05,2]
[351595305,1738651902905,-1220.82,9.413e-05,2]
[351595306,1738651902914,-1891.37,9.413e-05,2]
[351595307,1738651902923,-1353.58,9.413e-05,2]
[351595308,1738651902933,-500.0,9.413e-05,2]
[351595309,1738651902942,-1547.3,9.413e-05,2]
[351595310,1738651902951,-1928.93,9.413e-05,2]
[351595311,1738651902960,-951.36,9.413e-05,2]
[351595312,1738651902969,-1905.83,9.413e-05,2]
[351595313,1738651902979,-2772.81,9.413e-05,2]
[351595314,1738651902989,-1936.34,9.413e-05,2]
[351595315,1738651902999,-1218.2,9.413e-05,2]
[351595316,1738651903008,-760.65,9.413e-05,2]
[351595317,1738651903018,-1833.02,9.413e-05,2]
[351595318,1738651903028,-1760.21,9.413e-05,2]
[351595319,1738651903039,-1969.26,9.413e-05,2]
[351595320,1738651903050,-557.17,9.413e-05,2]
[351595321,1738651903059,-2207.04,9.413e-05,2]
[351595322,1738651903067,-1067.3,9.413e-05,2]
[351595323,1738651903076,-1711.85,9.413e-05,2]
[351595324,1738651903086,-606.13,9.413e-05,2]
[351595325,1738651903095,-1026.18,9.413e-05,2]
[351595326,1738651903111,-579.86,9.413e-05,2]
[351595327,1738651903131,-991.53,9.413e-05,2]
[351595328,1738651903152,-1828.91,9.413e-05,2]
[351595329,1738651903168,-1160.19,9.413e-05,2]
[351595330,1738651903181,-1961.27,9.413e-05,2]
[351595331,1738651903193,-500.0,9.414e-05,2]
[351595332,1738651903203,-503.46,9.414e-05,2]
[351595333,1738651903212,-500.0,9.414e-05,2]
[351595334,1738651903223,-500.0,9.414e-05,2]
[351595335,1738651903232,-500.0,9.414e-05,2]
[351595336,1738651903241,-505.21818263,9.414e-05,2]
[351595337,1738651903251,-637.81,9.414e-05,2]
[351595338,1738651903261,-500.0,9.414e-05,2]
[351595339,1738651903270,-503.81599998,9.414e-05,2]
[351595340,1738651903280,-500.0,9.414e-05,2]
[351595341,1738651903292,-500.0,9.414e-05,2]
[351595342,1738651903302,-510.93522051,9.414e-05,2]
[351595343,1738651903312,-848.3,9.414e-05,2]
[351595344,1738651903322,-500.0,9.414e-05,2]
[351595345,1738651903332,-500.0,9.414e-05,2]
[351595346,1738651903342,-500.0,9.414e-05,2]
[351595347,1738651903355,-500.0,9.414e-05,2]
[351595348,1738651903371,-617.18,9.414e-05,2]
[351595349,1738651903386,-500.0,9.414e-05,2]
[351595350,1738651903400,-508.12,9.414e-05,2]
[351595351,1738651903411,-1325.81,9.414e-05,2]
[351595352,1738651903420,-500.0,9.414e-05,2]
[351595353,1738651903430,-667.07,9.414e-05,2]
[351595354,1738651903439,-500.0,9.414e-05,2]
[351595355,1738651903449,-511.62157577,9.414e-05,2]
[351595356,1738651903458,-500.0,9.414e-05,2]
[351595357,1738651903467,-1020.47,9.414e-05,2]
[351595358,1738651903476,-500.0,9.414e-05,2]
[351595359,1738651903485,-500.0,9.414e-05,2]
[351595360,1738651903495,-500.0,9.414e-05,2]
[351595361,1738651903504,-500.0,9.414e-05,2]
[351595362,1738651903514,-971.18,9.414e-05,2]
[351595363,1738651903523,-1055.22,9.414e-05,2]
[351595364,1738651903533,-601.82,9.414e-05,2]
[351595365,1738651903543,-508.33627601,9.414e-05,2]
[351595366,1738651903553,-500.0,9.414e-05,2]
[351595367,1738651903562,-584.0,9.414e-05,2]
[351595368,1738651903572,-500.0,9.414e-05,2]
[351595369,1738651903581,-664.68,9.414e-05,2]
[351595370,1738651903591,-693.7,9.414e-05,2]
[351595371,1738651903600,-500.0,9.414e-05,2]
[351595372,1738651903610,-501.77542222,9.414e-05,2]
[351595373,1738651903619,-500.0,9.414e-05,2]
[351595374,1738651903629,-500.0,9.414e-05,2]
[351595375,1738651903638,-910.68,9.414e-05,2]
[351595376,1738651903647,-500.0,9.414e-05,2]
[351595377,1738651903657,-949.48,9.414e-05,2]
[351595378,1738651903666,-649.65,9.414e-05,2]
[351595379,1738651903676,-500.0,9.414e-05,2]
[351595380,1738651903686,-737.64,9.414e-05,2]
[351595381,1738651903696,-500.0,9.414e-05,2]
[351595382,1738651903705,-505.85046185,9.414e-05,2]
[351595383,1738651903715,-585.58,9.414e-05,2]
[351595384,1738651903725,-500.0,9.414e-05,2]
[351595385,1738651903736,-500.0,9.414e-05,2]
[351595386,1738651903746,-500.0,9.414e-05,2]
[351595387,1738651903755,-500.0,9.414e-05,2]
[351595388,1738651903764,-502.67,9.414e-05,2]
[351595389,1738651903774,-500.0,9.414e-05,2]
[351595390,1738651903784,-708.74,9.414e-05,2]
[351595391,1738651903794,-621.2,9.414e-05,2]
[351595392,1738651903803,-1126.75,9.414e-05,2]
[351595393,1738651903814,-502.25004475,9.414e-05,2]
[351595394,1738651903824,-500.0,9.414e-05,2]
[351595395,1738651903833,-503.32841009,9.414e-05,2]
[351595396,1738651903842,-500.0,9.414e-05,2]
[351595397,1738651903852,-1267.09,9.414e-05,2]
[351595398,1738651903861,-500.0,9.414e-05,2]
[351595399,1738651903870,-1330.04,9.414e-05,2]
[351595400,1738651903879,-500.0,9.414e-05,2]
[351595401,1738651903889,-500.0,9.414e-05,2]
[351595402,1738651903899,-502.00111749,9.414e-05,2]
[351595403,1738651903909,-893.25,9.414e-05,2]
[351595404,1738651903918,-500.0,9.414e-05,2]
[351595405,1738651903927,-522.19,9.414e-05,2]
[351595406,1738651903936,-741.38,9.414e-05,2]
[351595407,1738651903946,-1262.08,9.414e-05,2]
[351595408,1738651903956,-500.0,9.414e-05,2]
[351595409,1738651903966,-504.84150787,9.414e-05,2]
[351595410,1738651903975,-500.0,9.414e-05,2]
[351595411,1738651903985,-500.0,9.414e-05,2]
[351595412,1738651903995,-649.6,9.414e-05,2]
[351595413,1738651904004,-1136.55,9.414e-05,2]
[351595414,1738651904014,-500.0,9.414e-05,2]
[351595415,1738651904023,-500.0,9.414e-05,2]
[351595416,1738651904034,-706.95,9.414e-05,2]
[351595417,1738651904044,-502.49212297,9.414e-05,2]
[351595418,1738651904243,-1345.97,9.414e-05,2]
[351595419,1738651904253,-500.0,9.414e-05,2]
[351595420,1738651904263,-500.0,9.414e-05,2]
[351595421,1738651904273,-500.0,9.414e-05,2]
[351595422,1738651904283,-500.0,9.414e-05,2]
[351595423,1738651904295,-507.13,9.414e-05,2]
[351595425,1738651904304,-732.49,9.414e-05,2]
[351595426,1738651904314,-1293.49,9.414e-05,2]
[351595427,1738651904324,-500.0,9.414e-05,2]
[351595428,1738651904334,-500.0,9.414e-05,2]
[351595429,1738651904344,-3721.0,9.435e-05,2]
[351595430,1738651904355,-3724.97508185,9.463e-05,2]
[351595431,1738651904366,-2731.7,9.486e-05,2]
[351595432,1738651904375,-2597.79,9.486e-05,2]
[351595433,1738651904386,-1961.37,9.486e-05,2]
[351595434,1738651904396,-1780.96,9.486e-05,2]
[351595435,1738651904406,-792.21,9.486e-05,2]
[351595436,1738651904416,-500.0,9.486e-05,2]
[351595437,1738651904426,-3084.21,9.486e-05,2]
[351595438,1738651904436,-2443.54,9.486e-05,2]
[351595439,1738651904447,-1608.35,9.486e-05,2]
[351595440,1738651904457,-3326.15,9.486e-05,2]
[351595441,1738651904466,-3802.84,9.486e-05,2]
[351595442,1738651904476,-1058.09,9.486e-05,2]
[351595443,1738651904486,-3333.66,9.486e-05,2]
[351595444,1738651904495,-3287.56,9.486e-05,2]
[351595445,1738651904505,-3109.99,9.486e-05,2]
[351595446,1738651904515,-3571.14,9.486e-05,2]
[351595447,1738651904525,-3362.34,9.486e-05,2]
[351595448,1738651904535,-1037.7,9.486e-05,2]
[351595449,1738651904545,-3517.11,9.486e-05,2]
[351595450,1738651904554,-500.0,9.486e-05,2]
[351595451,1738651904563,-2639.94,9.486e-05,2]
[351595452,1738651904574,-665.18,9.486e-05,2]
[351595453,1738651904583,-1806.83,9.486e-05,2]
[351595454,1738651904593,-500.0,9.486e-05,2]
[351595455,1738651904603,-2956.17,9.486e-05,2]
[351595456,1738651904612,-634.35,9.486e-05,2]
[351595457,1738651904622,-1174.99,9.486e-05,2]
[351595458,1738651904632,-505.68,9.486e-05,2]
[351595459,1738651904642,-3489.81,9.486e-05,2]
[351595460,1738651904652,-2290.92,9.486e-05,2]
[351595461,1738651904661,-2152.55,9.486e-05,2]
[351595462,1738651904671,-1492.95,9.486e-05,2]
[351595463,1738651904681,-500.0,9.487e-05,2]
[351595464,1738651904691,-1386.25,9.487e-05,2]
[351595465,1738651904701,-573.38,9.487e-05,2]
[351595466,1738651904710,-1162.27,9.487e-05,2]
[351595467,1738651904719,-886.96,9.487e-05,2]
[351595468,1738651904729,-1960.06,9.487e-05,2]
[351595469,1738651904738,-500.0,9.487e-05,2]
[351595470,1738651904748,-1816.95,9.487e-05,2]
[351595471,1738651904758,-507.74,9.487e-05,2]
[351595472,1738651904767,-1692.58,9.487e-05,2]
[351595473,1738651904777,-500.0,9.487e-05,2]
[351595474,1738651904788,-1233.2,9.487e-05,2]
[351595475,1738651904798,-837.33,9.487e-05,2]
[351595476,1738651904808,-500.0,9.487e-05,2]
[351595477,1738651904817,-1065.99,9.487e-05,2]
[351595478,1738651904826,-1129.84,9.487e-05,2]
[351595479,1738651904836,-1504.93,9.487e-05,2]
[351595480,1738651904845,-1321.61,9.487e-05,2]
[351595481,1738651904855,-1364.66,9.487e-05,2]
[351595482,1738651904865,-745.69,9.487e-05,2]
[351595483,1738651904875,-1579.1,9.487e-05,2]
[351595484,1738651904884,-1941.246848,9.487e-05,2]
[351595485,1738651904894,-629.84,9.487e-05,2]
[351595486,1738651904904,-1596.8,9.487e-05,2]
[351595487,1738651904913,-500.0,9.487e-05,2]
[351595488,1738651904923,-986.75,9.487e-05,2]
[351595489,1738651904933,-879.57,9.487e-05,2]
[351595490,1738651904942,-500.0,9.487e-05,2]
[351595491,1738651904952,-379.88720067,9.487e-05,2]
[351595492,1738651904962,-628.73,9.487e-05,2]
[351595493,1738651904971,-500.0,9.487e-05,2]
[351595494,1738651904981,-1927.353361,9.487e-05,2]
[351595495,1738651904990,-500.0,9.487e-05,2]
[351595496,1738651905000,-628.63,9.487e-05,2]
[351595497,1738651905010,-1061.5,9.487e-05,2]
[351595498,1738651905019,-720.77,9.487e-05,2]
[351595499,1738651905029,-1583.49,9.487e-05,2]
[351595500,1738651905039,-1268.29,9.487e-05,2]
[351595501,1738651905049,-500.0,9.487e-05,2]
[351595502,1738651905059,-839.48,9.487e-05,2]
[351595503,1738651905068,-1688.73,9.487e-05,2]
[351595504,1738651905078,-1876.72,9.487e-05,2]
[351595505,1738651905087,-802.61,9.487e-05,2]
[351595506,1738651905097,-610.52,9.487e-05,2]
[351595507,1738651905107,-1840.23,9.487e-05,2]
[351595508,1738651905119,-622.05,9.487e-05,2]
[351595509,1738651905129,-1395.09,9.487e-05,2]
[351595510,1738651905139,-1984.41,9.487e-05,2]
[351595511,1738651905150,-500.0,9.487e-05,2]
[351595512,1738651905159,-573.41,9.487e-05,2]
[351595513,1738651905169,-500.0,9.487e-05,2]
[351595514,1738651905178,-500.0,9.487e-05,2]
[351595515,1738651905188,-702.06,9.487e-05,2]
[351595516,1738651905198,-1107.58,9.487e-05,2]
[351595517,1738651905208,-500.0,9.487e-05,2]
[351595518,1738651905218,-500.0,9.487e-05,2]
[351595519,1738651905227,-500.0,9.487e-05,2]
[351595520,1738651905237,-1023.87,9.487e-05,2]
[351595521,1738651905246,-500.0,9.487e-05,2]
[351595522,1738651905255,-2235.71,9.487e-05,2]
[351595523,1738651905264,-500.0,9.487e-05,2]
[351595524,1738651905273,-864.57,9.487e-05,2]
[351595525,1738651905283,-1442.14,9.487e-05,2]
[351595526,1738651905292,-1526.09,9.487e-05,2]
[351595527,1738651905302,-500.0,9.487e-05,2]
[351595528,1738651905311,-749.13,9.487e-05,2]
[351595529,1738651905320,-500.0,9.487e-05,2]
[351595530,1738651905330,-871.17,9.487e-05,2]
[351595531,1738651905339,-1146.18,9.487e-05,2]
[351595532,1738651905348,-662.91,9.487e-05,2]
[351595533,1738651905357,-500.0,9.487e-05,2]
[351595534,1738651905367,-1009.64,9.487e-05,2]
[351595535,1738651905376,-2267.45,9.487e-05,2]
[351595536,1738651905385,-656.52,9.487e-05,2]
[351595537,1738651905395,-500.0,9.487e-05,2]
[351595538,1738651905404,-541.89,9.487e-05,2]
[351595539,1738651905413,-736.13,9.487e-05,2]
[351595540,1738651905422,-1760.16,9.487e-05,2]
[351595541,1738651905432,-2409.33,9.487e-05,2]
[351595542,1738651905441,-1852.54,9.487e-05,2]
[351595543,1738651905450,-2838.45,9.487e-05,2]
[351595544,1738651905460,-528.53,9.487e-05,2]
[351595545,1738651905469,-545.79,9.487e-05,2]
[351595546,1738651905478,-2890.01,9.487e-05,2]
[351595547,1738651905488,-500.0,9.487e-05,2]
[351595548,1738651905497,-2478.82,9.487e-05,2]
[351595549,1738651905506,-500.0,9.487e-05,2]
[351595550,1738651905515,-500.0,9.487e-05,2]
[351595551,1738651905525,-942.69,9.487e-05,2]
[351595552,1738651905535,-1246.43,9.487e-05,2]
[351595553,1738651905544,-500.0,9.487e-05,2]
[351595554,1738651905554,-2635.78,9.487e-05,2]
[351595555,1738651905563,-1761.95,9.487e-05,2]
[351595556,1738651905571,-250.0613724,9.487e-05,2]
[351595557,1738651905582,-793.19,9.487e-05,2]
[351595558,1738651905591,-2601.96,9.487e-05,2]
[351595559,1738651905600,-2705.26,9.487e-05,2]
[351595560,1738651905610,-1478.32,9.487e-05,2]
[351595561,1738651905619,-500.0,9.487e-05,2]
[351595562,1738651905628,-2173.93,9.487e-05,2]
[351595563,1738651905638,-2878.08,9.487e-05,2]
[351595564,1738651905647,-1170.31,9.487e-05,2]
[351595565,1738651905656,-500.0,9.487e-05,2]
[351595566,1738651905665,-2206.62,9.487e-05,2]
[351595567,1738651905675,-533.56,9.487e-05,2]
[351595568,1738651905684,-1881.39,9.487e-05,2]
[351595569,1738651905694,-2920.46,9.487e-05,2]
[351595570,1738651905703,-699.93,9.487e-05,2]
[351595571,1738651905712,-2040.45,9.487e-05,2]
[351595572,1738651905722,-500.0,9.487e-05,2]
[351595573,1738651905731,-2227.02,9.487e-05,2]
[351595574,1738651905740,-614.25,9.487e-05,2]
[351595575,1738651905750,-779.73,9.487e-05,2]
[351595576,1738651905759,-2094.99,9.487e-05,2]
[351595577,1738651905769,-1294.54,9.487e-05,2]
[351595578,1738651905778,-3429.21,9.487e-05,2]
[351595579,1738651905788,-500.0,9.487e-05,2]
[351595580,1738651905799,-504.28977613,9.487e-05,2]
[351595581,1738651905808,-2303.31,9.487e-05,2]
[351595582,1738651905817,-500.0,9.487e-05,2]
[351595583,1738651905827,-500.0,9.487e-05,2]
[351595584,1738651905837,-2519.6,9.487e-05,2]
[351595585,1738651905846,-596.06,9.487e-05,2]
[351595586,1738651905856,-540.23,9.487e-05,2]
[351595587,1738651905866,-3292.26,9.487e-05,2]
[351595588,1738651905875,-2116.61,9.487e-05,2]
[351595589,1738651905884,-4613.87,9.487e-05,2]
[351595590,1738651905893,-3463.94,9.487e-05,2]
[351595591,1738651905903,-1583.36,9.487e-05,2]
[351595592,1738651905913,-723.79,9.487e-05,2]
[351595593,1738651905923,-1828.01,9.487e-05,2]
[351595594,1738651905933,-500.0,9.487e-05,2]
[351595595,1738651905943,-2319.2,9.487e-05,2]
[351595596,1738651905953,-3655.1,9.487e-05,2]
[351595597,1738651905962,-500.0,9.487e-05,2]
[351595598,1738651905972,-500.0,9.487e-05,2]
[351595599,1738651905982,-2342.96,9.487e-05,2]
[351595600,1738651905992,-3953.69,9.487e-05,2]
[351595601,1738651906001,-1102.3,9.487e-05,2]
[351595602,1738651906011,-500.0,9.487e-05,2]
[351595603,1738651906021,-687.18,9.487e-05,2]
[351595604,1738651906030,-1381.74,9.487e-05,2]
[351595605,1738651906043,-500.0,9.487e-05,2]
[351595606,1738651906053,-2821.45,9.487e-05,2]
[351595607,1738651906063,-3735.43,9.487e-05,2]
[351595608,1738651906073,-500.0,9.487e-05,2]
[351595609,1738651906082,-578.47,9.487e-05,2]
[351595610,1738651906092,-4039.67,9.487e-05,2]
[351595611,1738651906102,-7208.32,9.487e-05,2]
[351595612,1738651906113,-500.0,9.487e-05,2]
[351595613,1738651906123,-4132.64,9.487e-05,2]
[351595614,1738651906133,-779.56,9.487e-05,2]
[351595615,1738651906142,-1096.53,9.487e-05,2]
[351595616,1738651906152,-695.86,9.487e-05,2]
[351595617,1738651906162,-503.88096176,9.487e-05,2]
[351595618,1738651906171,-1243.82,9.487e-05,2]
[351595619,1738651906180,-500.0,9.487e-05,2]
[351595620,1738651906190,-9349.12,9.487e-05,2]
[351595621,1738651906200,-767.74,9.487e-05,2]
[351595622,1738651906210,-1992.72,9.487e-05,2]
[351595623,1738651906220,-590.61,9.487e-05,2]
[351595624,1738651906230,-1043.64,9.487e-05,2]
[351595625,1738651906239,-500.0,9.487e-05,2]
[351595626,1738651906249,-500.0,9.487e-05,2]
[351595627,1738651906259,-3184.53,9.487e-05,2]
[351595628,1738651906269,-960.35,9.487e-05,2]
[351595629,1738651906279,-3457.48,9.487e-05,2]
[351595630,1738651906290,-543.03,9.487e-05,2]
[351595631,1738651906300,-567.99,9.487e-05,2]
[351595632,1738651906310,-500.0,9.487e-05,2]
[351595633,1738651906320,-1178.38,9.487e-05,2]
[351595634,1738651906330,-3649.67,9.487e-05,2]
[351595635,1738651906340,-568.89,9.487e-05,2]
[351595636,1738651906351,-3263.47,9.487e-05,2]
[351595637,1738651906361,-1509.83,9.487e-05,2]
[351595638,1738651906371,-2825.8,9.487e-05,2]
[351595639,1738651906380,-551.84,9.487e-05,2]
[351595640,1738651906391,-521.44,9.487e-05,2]
[351595641,1738651906401,-500.0,9.487e-05,2]
[351595642,1738651906410,-500.0,9.487e-05,2]
[351595643,1738651906420,-500.0,9.487e-05,2]
[351595644,1738651906430,-2253.1,9.487e-05,2]
[351595645,1738651906440,-531.39,9.487e-05,2]
[351595646,1738651906450,-2034.78,9.487e-05,2]
[351595647,1738651906459,-3059.11,9.487e-05,2]
[351595648,1738651906468,-1676.59,9.487e-05,2]
[351595649,1738651906478,-500.0,9.487e-05,2]
[351595650,1738651906488,-3067.77,9.487e-05,2]
[351595651,1738651906497,-811.45,9.487e-05,2]
[351595652,1738651906507,-704.39,9.487e-05,2]
[351595653,1738651906516,-1599.03,9.487e-05,2]
[351595654,1738651906525,-1503.5,9.487e-05,2]
[351595655,1738651906535,-1492.09,9.487e-05,2]
[351595656,1738651906548,-1793.52,9.487e-05,2]
[351595657,1738651906558,-532.79,9.487e-05,2]
[351595658,1738651906568,-602.67,9.487e-05,2]
[351595659,1738651906578,-500.0,9.487e-05,2]
[351595660,1738651906587,-626.12,9.487e-05,2]
[351595661,1738651906597,-508.24,9.487e-05,2]
[351595662,1738651906607,-3133.77,9.487e-05,2]
[351595663,1738651906618,-648.43,9.487e-05,2]
[351595664,1738651906628,-500.0,9.487e-05,2]
[351595665,1738651906638,-500.0,9.487e-05,2]
[351595666,1738651906647,-500.0,9.487e-05,2]
[351595667,1738651906657,-500.0,9.487e-05,2]
[351595668,1738651906667,-2093.99,9.487e-05,2]
[351595669,1738651906676,-1378.56,9.487e-05,2]
[351595670,1738651906685,-500.0,9.487e-05,2]
[351595671,1738651906694,-3288.7,9.487e-05,2]
[351595672,1738651906704,-500.0,9.487e-05,2]
[351595673,1738651906713,-255.0,9.49e-05,2]
[351595674,1738651906723,-3438.53,9.497e-05,2]
[351595675,1738651906732,-500.0,9.497e-05,2]
[351595676,1738651906741,-1646.64,9.497e-05,2]
[351595677,1738651906751,-3741.7,9.497e-05,2]
[351595678,1738651906760,-3952.63,9.497e-05,2]
[351595679,1738651906769,-3680.29,9.497e-05,2]
[351595680,1738651906778,-225.69,9.497e-05,2]
[351595681,1738651906790,-4147.98,9.497e-05,2]
[351595682,1738651906800,-4138.09,9.497e-05,2]
[351595683,1738651906809,-2408.72,9.497e-05,2]
[351595684,1738651906818,-1057.21,9.497e-05,2]
[351595685,1738651906828,-2579.52,9.497e-05,2]
[351595686,1738651906838,-3070.89,9.497e-05,2]
[351595687,1738651906847,-2766.53,9.497e-05,2]
[351595688,1738651906856,-3378.45,9.497e-05,2]
[351595689,1738651906866,-1311.77,9.497e-05,2]
[351595690,1738651906875,-2863.92,9.497e-05,2]
[351595691,1738651906884,-4110.8,9.497e-05,2]
[351595692,1738651906894,-3875.56,9.497e-05,2]
[351595693,1738651906903,-2764.33,9.497e-05,2]
[351595694,1738651906912,-3587.47,9.497e-05,2]
[351595695,1738651906921,-717.35,9.497e-05,2]
[351595696,1738651906930,-2721.91,9.497e-05,2]
[351595697,1738651906940,-7297.33193271,9.501e-05,2]
[351595698,1738651906948,-39452.45037033,9.501e-05,2]
[351595699,1738651906958,-609.44384964,9.501e-05,2]
[351595700,1738651906968,-533.37804724,9.501e-05,2]
[351595701,1738651906977,-705.3633168,9.544e-05,2]
[351595702,1738651906986,-500.0,9.548e-05,2]
[351595703,1738651906997,-500.0,9.548e-05,2]
[351595704,1738651907006,-894.03,9.548e-05,2]
[351595705,1738651907015,-413.52409896,9.548e-05,2]
[351595706,1738651907024,-500.0,9.548e-05,2]
[351595707,1738651907033,-549.03,9.548e-05,2]
[351595708,1738651907046,-652.3,9.548e-05,2]
[351595709,1738651907055,-500.0,9.548e-05,2]
[351595710,1738651907064,-500.0,9.548e-05,2]
[351595711,1738651907073,-778.56,9.548e-05,2]
[351595712,1738651907083,-573.55,9.548e-05,2]
[351595713,1738651907092,-500.0,9.548e-05,2]
[351595714,1738651907103,-1319.98,9.548e-05,2]
[351595715,1738651907116,-396.08374952,9.548e-05,2]
[351595716,1738651907125,-578.36,9.549e-05,2]
[351595717,1738651907135,-504.06133792,9.549e-05,2]
[351595718,1738651907144,-500.0,9.549e-05,2]
[351595719,1738651907154,-500.0,9.549e-05,2]
[351595720,1738651907164,-500.0,9.549e-05,2]
[351595721,1738651907173,-504.50696573,9.549e-05,2]
[351595722,1738651907183,-500.0,9.549e-05,2]
[351595723,1738651907192,-710.18,9.549e-05,2]
[351595724,1738651907201,-522.69,9.549e-05,2]
[351595725,1738651907211,-603.54,9.549e-05,2]
[351595726,1738651907220,-623.15,9.549e-05,2]
[351595727,1738651907230,-500.0,9.549e-05,2]
[351595728,1738651907239,-1377.31,9.549e-05,2]
[351595729,1738651907248,-500.0,9.549e-05,2]
[351595730,1738651907257,-500.0,9.549e-05,2]
[351595731,1738651907267,-858.49,9.549e-05,2]
[351595732,1738651907276,-657.95,9.549e-05,2]
[351595733,1738651907287,-639.79,9.549e-05,2]
[351595734,1738651907296,-524.94,9.549e-05,2]
[351595735,1738651907306,-770.99,9.549e-05,2]
[351595736,1738651907315,-500.0,9.549e-05,2]
[351595737,1738651907325,-500.0,9.549e-05,2]
[351595738,1738651907519,-500.0,9.549e-05,2]
[351595739,1738651907529,-500.0,9.549e-05,2]
[351595740,1738651907542,-611.3,9.549e-05,2]
[351595741,1738651907552,-500.0,9.549e-05,2]
[351595742,1738651907562,-902.57,9.549e-05,2]